[Event "Djerba Festival Blitz 2025"]
[Site "Djerba"]
[Date "2025.02.21"]
[Round "3.21"]
[White "Baba, Ayoub"]
[Black "Ajbara Jamal"]
[Result "0-1"]
[ECO "B23"]
[WhiteElo "1469"]
[BlackElo "1898"]
[PlyCount "54"]
[EventDate "2025.02.15"]
[EventType "swiss"]
[EventCountry "TUN"]
[TimeControl "180+3"]

1. e4 {[%emt 0:00:03]} c5 {[%emt 0:00:03]} 2. Nc3 {[%emt 0:00:04]} e6 {[%emt 0:00:02]} 3. d3 {[%emt 0:00:05]} d5 {[%emt 0:00:05]} 4. exd5 {[%emt 0:00:05]} exd5 {[%emt 0:00:02]} 5. Be2 {[%emt 0:00:03]} Nf6 {[%emt 0:00:05]} 6. Bf4 {[%emt 0:00:05]} Nc6 {[%emt 0:00:07]} 7. Qd2 {[%emt 0:00:04]} Nd4 {[%emt 0:00:05]} 8. Nf3 {[%emt 0:00:09]} Ne6 {[%emt 0:00:06]} 9. Bg3 {[%emt 0:00:05]} Be7 {[%emt 0:00:07]} 10. O-O-O {[%emt 0:00:09]} Qa5 {[%emt 0:00:12]} 11. Kb1 {[%emt 0:00:05]} b5 {[%emt 0:00:09]} 12. Ne5 {[%emt 0:00:13]} Bb7 {[%emt 0:00:07]} 13. Bf3 {[%emt 0:00:06]} Nd4 {[%emt 0:00:08]} 14. Rhe1 {[%emt 0:00:08]} O-O {[%emt 0:00:08]} 15. Nd7 {[%emt 0:00:34]} Rfe8 {[%emt 0:00:11]} 16. Nxc5 {[%emt 0:00:08]} Bxc5 {[%emt 0:00:06]} 17. Rxe8+ {[%emt 0:00:06]} Rxe8 {[%emt 0:00:02]} 18. Qg5 {[%emt 0:00:11]} Ne6 {[%emt 0:00:17]} 19. Qf5 {[%emt 0:00:08]} b4 {[%emt 0:00:24]} 20. Nxd5 {[%emt 0:00:04]} Nxd5 {[%emt 0:00:07]} 21. Bxd5 {[%emt 0:00:02]} Bxd5 {[%emt 0:00:08]} 22. Qxd5 {[%emt 0:00:03]} b3 {[%emt 0:00:07]} 23. Qxb3 {[%emt 0:00:10]} Nd4 {[%emt 0:00:06]} 24. Qd5 {[%emt 0:00:14]} Re1 {[%emt 0:00:12]} 25. Qa8+ {[%emt 0:00:36]} Bf8 {[%emt 0:00:02]} 26. Rc1 {[%emt 0:00:16]} Qd2 {[%emt 0:00:02]} 27. a3 {[%emt 0:00:25]} Rxc1+ {[%emt 0:00:05]} 0-1

[Event "Djerba Festival Blitz 2025"]
[Site "Djerba"]
[Date "2025.02.21"]
[Round "3.22"]
[White "Doucet, Pierre-Alois"]
[Black "Benzarti, Thabet"]
[Result "0-1"]
[ECO "B13"]
[WhiteElo "2027"]
[BlackElo "1664"]
[PlyCount "101"]
[EventDate "2025.02.15"]
[EventType "swiss"]
[EventCountry "TUN"]
[TimeControl "180+3"]

1. e4 {[%emt 0:00:03]} c6 {[%emt 0:00:03]} 2. d4 {[%emt 0:00:02]} d5 {[%emt 0:00:02]} 3. exd5 {[%emt 0:00:02]} cxd5 {[%emt 0:00:02]} 4. Bd3 {[%emt 0:00:02]} Nc6 {[%emt 0:00:02]} 5. c3 {[%emt 0:00:01]} Nf6 {[%emt 0:00:02]} 6. Bf4 {[%emt 0:00:02]} Bg4 {[%emt 0:00:03]} 7. Qb3 {[%emt 0:00:02]} Qd7 {[%emt 0:00:02]} 8. Nd2 {[%emt 0:00:02]} e6 {[%emt 0:00:02]} 9. Ngf3 {[%emt 0:00:01]} Bd6 {[%emt 0:00:02]} 10. Bxd6 {[%emt 0:00:03]} Qxd6 {[%emt 0:00:02]} 11. O-O {[%emt 0:00:02]} O-O {[%emt 0:00:03]} 12. h3 {[%emt 0:00:03]} Bh5 {[%emt 0:00:04]} 13. Rae1 {[%emt 0:00:08]} Qc7 {[%emt 0:00:22]} 14. Ne5 {[%emt 0:00:02]} Nxe5 {[%emt 0:00:07]} 15. dxe5 {[%emt 0:00:13]} Nd7 {[%emt 0:00:03]} 16. Qc2 {[%emt 0:00:01]} Bg6 {[%emt 0:00:04]} 17. Bxg6 {[%emt 0:00:11]} hxg6 {[%emt 0:00:02]} 18. Nf3 {[%emt 0:00:11]} Rac8 {[%emt 0:00:09]} 19. Qd2 {[%emt 0:00:08]} Nc5 {[%emt 0:00:06]} 20. Nd4 {[%emt 0:00:09]} Ne4 {[%emt 0:00:15]} 21. Qf4 {[%emt 0:00:10]} g5 {[%emt 0:00:09]} 22. Qe3 {[%emt 0:00:12]} Qe7 {[%emt 0:00:19]} 23. f3 {[%emt 0:00:10]} Ng3 {[%emt 0:00:05]} 24. Rf2 {[%emt 0:00:06]} Nh5 {[%emt 0:00:06]} 25. Kh2 {[%emt 0:00:09]} a6 {[%emt 0:00:29]} 26. Ne2 {[%emt 0:00:25]} g6 {[%emt 0:00:07]} 27. g4 {[%emt 0:00:10]} Ng7 {[%emt 0:00:05]} 28. Nd4 {[%emt 0:00:02]} Ne8 {[%emt 0:00:21]} 29. f4 {[%emt 0:00:10]} gxf4 {[%emt 0:00:04]} 30. Rxf4 {[%emt 0:00:03]} Qh4 {[%emt 0:00:36]} 31. Nf3 {[%emt 0:00:12]} Qh6 {[%emt 0:00:06]} 32. g5 {[%emt 0:00:02]} Qh7 {[%emt 0:00:02]} 33. Rh4 {[%emt 0:00:15]} Qg7 {[%emt 0:00:03]} 34. Rf1 {[%emt 0:00:11]} Nc7 {[%emt 0:00:10]} 35. Nd4 {[%emt 0:00:04]} Rfe8 {[%emt 0:00:08]} 36. Rf6 {[%emt 0:00:01]} Re7 {[%emt 0:00:06]} 37. Qf3 {[%emt 0:00:03]} Ne8 {[%emt 0:00:04]} 38. Rhf4 {[%emt 0:00:04]} Rcc7 {[%emt 0:00:04]} 39. h4 {[%emt 0:00:03]} Red7 {[%emt 0:00:04]} 40. Nxe6 {[%emt 0:00:08]} fxe6 {[%emt 0:00:03]} 41. Rf8+ {[%emt 0:00:02]} Kh7 {[%emt 0:00:02]} 42. Rxe8 {[%emt 0:00:03]} Re7 {[%emt 0:00:02]} 43. Rxe7 {[%emt 0:00:03]} Qxe7 {[%emt 0:00:04]} 44. Rf6 {[%emt 0:00:02]} Qg7 {[%emt 0:00:08]} 45. h5 {[%emt 0:00:02]} gxh5 {[%emt 0:00:09]} 46. Qxh5+ {[%emt 0:00:01]} Kg8 {[%emt 0:00:08]} 47. Rg6 {[%emt 0:00:02]} Kf8 {[%emt 0:00:00]} 48. Rxg7 {[%emt 0:00:03]} Kxg7 {[%emt 0:00:00]} 49. Qh6+ {[%emt 0:00:02]} Kf7 {[%emt 0:00:02]} 50. Qf6+ {[%emt 0:00:01]} Ke8 {[%emt 0:00:02]} 51. Qxe6+ {[%emt 0:00:02]} 0-1

[Event "Djerba Festival Blitz 2025"]
[Site "Djerba"]
[Date "2025.02.21"]
[Round "3.23"]
[White "Alouani, Ahmed"]
[Black "MEZGOURI NOUREDDINE"]
[Result "0-1"]
[ECO "D02"]
[WhiteElo "1617"]
[BlackElo "1891"]
[PlyCount "110"]
[EventDate "2025.02.15"]
[EventType "swiss"]
[EventCountry "TUN"]
[TimeControl "180+3"]

1. Nf3 {[%emt 0:00:03]} d5 {[%emt 0:00:05]} 2. d4 {[%emt 0:00:03]} Nf6 {[%emt 0:00:02]} 3. Bf4 {[%emt 0:00:02]} c6 {[%emt 0:00:02]} 4. c3 {[%emt 0:00:05]} Bf5 {[%emt 0:00:03]} 5. e3 {[%emt 0:00:03]} e6 {[%emt 0:00:02]} 6. Nbd2 {[%emt 0:00:11]} Bd6 {[%emt 0:00:04]} 7. Bxd6 {[%emt 0:00:07]} Qxd6 {[%emt 0:00:02]} 8. Ne5 {[%emt 0:00:12]} Nbd7 {[%emt 0:00:03]} 9. Ndf3 {[%emt 0:00:03]} Ng4 {[%emt 0:00:18]} 10. Nxd7 {[%emt 0:00:15]} Qxd7 {[%emt 0:00:05]} 11. h3 {[%emt 0:00:07]} Nf6 {[%emt 0:00:02]} 12. Ne5 {[%emt 0:00:02]} Qc7 {[%emt 0:00:02]} 13. Bd3 {[%emt 0:00:20]} Ne4 {[%emt 0:00:09]} 14. Bxe4 {[%emt 0:00:06]} Bxe4 {[%emt 0:00:03]} 15. a4 {[%emt 0:00:42]} f6 {[%emt 0:00:18]} 16. Nf3 {[%emt 0:00:03]} O-O {[%emt 0:00:09]} 17. O-O {[%emt 0:00:14]} e5 {[%emt 0:00:05]} 18. Nd2 {[%emt 0:00:18]} Bd3 {[%emt 0:00:10]} 19. Re1 {[%emt 0:00:03]} e4 {[%emt 0:00:32]} 20. Rc1 {[%emt 0:00:20]} f5 {[%emt 0:00:03]} 21. c4 {[%emt 0:00:02]} Qf7 {[%emt 0:00:05]} 22. g3 {[%emt 0:00:08]} Kh8 {[%emt 0:00:08]} 23. cxd5 {[%emt 0:00:03]} cxd5 {[%emt 0:00:02]} 24. Nb3 {[%emt 0:00:11]} b6 {[%emt 0:00:05]} 25. Rc3 {[%emt 0:00:14]} g5 {[%emt 0:00:07]} 26. Rxd3 {[%emt 0:00:03]} exd3 {[%emt 0:00:05]} 27. Qxd3 {[%emt 0:00:01]} f4 {[%emt 0:00:05]} 28. exf4 {[%emt 0:00:05]} gxf4 {[%emt 0:00:03]} 29. Qe2 {[%emt 0:00:12]} fxg3 {[%emt 0:00:08]} 30. Qe5+ {[%emt 0:00:03]} Qg7 {[%emt 0:00:10]} 31. Qxg7+ {[%emt 0:00:03]} Kxg7 {[%emt 0:00:03]} 32. fxg3 {[%emt 0:00:02]} Rf3 {[%emt 0:00:03]} 33. Nd2 {[%emt 0:00:06]} Rxg3+ {[%emt 0:00:05]} 34. Kh2 {[%emt 0:00:04]} Rd3 {[%emt 0:00:03]} 35. Rg1+ {[%emt 0:00:03]} Kf6 {[%emt 0:00:06]} 36. Rg2 {[%emt 0:00:04]} Rxd4 {[%emt 0:00:06]} 37. Nf3 {[%emt 0:00:01]} Rxa4 {[%emt 0:00:06]} 38. Rf2 {[%emt 0:00:05]} Ke7 {[%emt 0:00:04]} 39. Re2+ {[%emt 0:00:02]} Kd6 {[%emt 0:00:04]} 40. Ng5 {[%emt 0:00:04]} h5 {[%emt 0:00:16]} 41. Re6+ {[%emt 0:00:04]} Kc5 {[%emt 0:00:05]} 42. Rh6 {[%emt 0:00:02]} Re8 {[%emt 0:00:05]} 43. Rxh5 {[%emt 0:00:05]} Re2+ {[%emt 0:00:02]} 44. Kg3 {[%emt 0:00:03]} Rxb2 {[%emt 0:00:05]} 45. Ne6+ {[%emt 0:00:05]} Kd6 {[%emt 0:00:06]} 46. Nf4 {[%emt 0:00:02]} Rb3+ {[%emt 0:00:04]} 47. Kg4 {[%emt 0:00:02]} Rbb4 {[%emt 0:00:03]} 48. Rf5 {[%emt 0:00:04]} Rxf4+ {[%emt 0:00:09]} 49. Rxf4 {[%emt 0:00:03]} Rxf4+ {[%emt 0:00:03]} 50. Kxf4 {[%emt 0:00:01]} Ke7 {[%emt 0:00:02]} 51. Ke5 {[%emt 0:00:03]} Kf7 {[%emt 0:00:05]} 52. Kxd5 {[%emt 0:00:02]} Kg6 {[%emt 0:00:01]} 53. Kc6 {[%emt 0:00:02]} Kh5 {[%emt 0:00:02]} 54. Kb5 {[%emt 0:00:03]} Kh4 {[%emt 0:00:03]} 55. Ka6 {[%emt 0:00:04]} Kxh3 {[%emt 0:00:03]} 0-1

[Event "Djerba Festival Blitz 2025"]
[Site "Djerba"]
[Date "2025.02.21"]
[Round "3.26"]
[White "Zouaghi, Ahmed"]
[Black "Soudani, Hassan"]
[Result "1-0"]
[ECO "C20"]
[WhiteElo "1919"]
[BlackElo "1598"]
[PlyCount "44"]
[EventDate "2025.02.15"]
[EventType "swiss"]
[EventCountry "TUN"]
[TimeControl "180+3"]

1. e4 {[%emt 0:00:03]} e5 {[%emt 0:00:03]} 2. d3 {[%emt 0:00:03]} Nc6 {[%emt 0:00:03]} 3. f3 {[%emt 0:00:02]} Bc5 {[%emt 0:00:02]} 4. Ne2 {[%emt 0:00:05]} Nf6 {[%emt 0:00:03]} 5. Ng3 {[%emt 0:00:03]} d5 {[%emt 0:00:03]} 6. Be2 {[%emt 0:00:05]} O-O {[%emt 0:00:04]} 7. c3 {[%emt 0:00:03]} h6 {[%emt 0:00:05]} 8. d4 {[%emt 0:00:02]} exd4 {[%emt 0:00:02]} 9. cxd4 {[%emt 0:00:02]} Nxd4 {[%emt 0:00:03]} 10. Nf5 {[%emt 0:00:06]} Nxf5 {[%emt 0:00:03]} 11. exf5 {[%emt 0:00:03]} Bxf5 {[%emt 0:00:03]} 12. Nc3 {[%emt 0:00:04]} Re8 {[%emt 0:00:03]} 13. a3 {[%emt 0:00:09]} a6 {[%emt 0:00:07]} 14. b4 {[%emt 0:00:03]} Ba7 {[%emt 0:00:02]} 15. Bf4 {[%emt 0:00:16]} d4 {[%emt 0:00:02]} 16. Ne4 {[%emt 0:00:06]} Nxe4 {[%emt 0:00:04]} 17. fxe4 {[%emt 0:00:03]} Rxe4 {[%emt 0:00:05]} 18. Qb3 {[%emt 0:00:14]} d3 {[%emt 0:00:06]} 19. Rd1 {[%emt 0:00:08]} Rxe2+ {[%emt 0:00:04]} 20. Kf1 {[%emt 0:02:23]} Rf2+ {[%emt 0:00:08]} 21. Ke1 {[%emt 0:00:00]} Qe7+ {[%emt 0:00:04]} 22. Be3 {[%emt 0:00:00]} Qxe3# {[%emt 0:01:13] Ra1 Qe6+ Qd1} 1-0

[Event "Djerba Festival Blitz 2025"]
[Site "Djerba"]
[Date "2025.02.21"]
[Round "3.27"]
[White "Mallah, Abderrahmane"]
[Black "Zenaidi, Sadok"]
[Result "0-1"]
[ECO "B15"]
[WhiteElo "1556"]
[BlackElo "1872"]
[PlyCount "62"]
[EventDate "2025.02.15"]
[EventType "swiss"]
[EventCountry "TUN"]
[TimeControl "180+3"]

1. e4 {[%emt 0:03:06]} c6 2. d4 {[%emt 0:00:03]} d5 3. Nc3 {[%emt 0:00:03]} dxe4 {[%emt 0:03:12]} 4. Nxe4 {[%emt 0:00:03]} Nf6 5. Nxf6+ {[%emt 0:00:03]} exf6 {[%emt 0:00:06]} 6. c3 {[%emt 0:00:03]} Bd6 {[%emt 0:00:03]} 7. Bd3 {[%emt 0:00:03]} O-O 8. Qc2 {[%emt 0:00:03]} Re8+ 9. Ne2 {[%emt 0:00:03]} h5 10. O-O {[%emt 0:00:03]} Qc7 11. h3 {[%emt 0:00:03]} Be6 {[%emt 0:00:15]} 12. Be3 {[%emt 0:00:03]} Nd7 {[%emt 0:00:03]} 13. Rfe1 {[%emt 0:00:03]} b5 {[%emt 0:00:03]} 14. a3 {[%emt 0:00:03]} Nb6 {[%emt 0:00:03]} 15. Rad1 {[%emt 0:00:03]} a5 {[%emt 0:00:03]} 16. Be4 {[%emt 0:00:03]} a4 {[%emt 0:00:03]} 17. Qd2 {[%emt 0:00:03]} Bb3 {[%emt 0:00:03]} 18. Bc2 {[%emt 0:00:03]} Nc4 {[%emt 0:00:03]} 19. Qc1 {[%emt 0:00:03]} Bxc2 {[%emt 0:00:03]} 20. Qxc2 {[%emt 0:00:03]} Nxe3 {[%emt 0:00:03]} 21. fxe3 Rxe3 22. d5 {[%emt 0:00:06]} Bc5 {[%emt 0:00:06]} 23. Kh1 {[%emt 0:00:03]} Rae8 {[%emt 0:00:03]} 24. dxc6 {[%emt 0:00:03]} Qxc6 {[%emt 0:00:03]} 25. Kh2 {[%emt 0:00:03]} Bd6+ 26. Kg1 {[%emt 0:00:03]} Bg3 {[%emt 0:00:06]} 27. Qd2 {[%emt 0:00:03]} Bxe1 {[%emt 0:00:03]} 28. Rxe1 Qe6 29. Kf2 {[%emt 0:00:06]} Qf5+ {[%emt 0:00:06]} 30. Kg1 {[%emt 0:00:03]} g6 {[%emt 0:00:03]} 31. Kh1 {[%emt 0:00:03]} Qf2 {[%emt 0:00:03]} 0-1

[Event "Djerba Festival Blitz 2025"]
[Site "Djerba"]
[Date "2025.02.21"]
[Round "3.29"]
[White "Chartier, Romain"]
[Black "Bensadi, Lotfi"]
[Result "0-1"]
[ECO "D02"]
[WhiteElo "1581"]
[BlackElo "1971"]
[PlyCount "96"]
[EventDate "2025.02.15"]
[EventType "swiss"]
[EventCountry "TUN"]
[TimeControl "180+3"]

1. d4 {[%emt 0:00:04]} Nf6 {[%emt 0:00:03]} 2. Bf4 {[%emt 0:00:02]} d5 {[%emt 0:00:02]} 3. e3 {[%emt 0:00:03]} c5 {[%emt 0:00:03]} 4. c3 {[%emt 0:00:02]} Nc6 {[%emt 0:00:02]} 5. Bd3 {[%emt 0:00:03]} Qb6 {[%emt 0:00:17]} 6. Qc1 {[%emt 0:00:06]} e6 {[%emt 0:00:07]} 7. Nf3 {[%emt 0:00:03]} Be7 {[%emt 0:00:07]} 8. h3 {[%emt 0:00:04]} a6 {[%emt 0:00:10]} 9. O-O {[%emt 0:00:03]} h6 {[%emt 0:00:24]} 10. Nbd2 {[%emt 0:00:04]} O-O {[%emt 0:00:04]} 11. Ne5 {[%emt 0:00:10]} Nxe5 {[%emt 0:00:19]} 12. Bxe5 {[%emt 0:00:09]} Nd7 {[%emt 0:00:03]} 13. Bg3 {[%emt 0:00:05]} Bd6 {[%emt 0:00:04]} 14. Bxd6 {[%emt 0:00:05]} Qxd6 {[%emt 0:00:02]} 15. Nf3 {[%emt 0:00:02]} e5 {[%emt 0:00:07]} 16. dxe5 {[%emt 0:00:09]} Nxe5 {[%emt 0:00:02]} 17. Nxe5 {[%emt 0:00:03]} Qxe5 {[%emt 0:00:03]} 18. Re1 {[%emt 0:00:11]} f5 {[%emt 0:00:12]} 19. Qc2 {[%emt 0:00:13]} Be6 {[%emt 0:00:13]} 20. Rad1 {[%emt 0:00:04]} Rad8 {[%emt 0:00:05]} 21. b3 {[%emt 0:00:33]} Kh8 {[%emt 0:00:03]} 22. c4 {[%emt 0:00:03]} dxc4 {[%emt 0:00:50]} 23. Bxc4 {[%emt 0:00:08]} Bxc4 {[%emt 0:00:10]} 24. Qxc4 {[%emt 0:00:03]} b5 {[%emt 0:00:02]} 25. Qc2 {[%emt 0:00:17]} g6 {[%emt 0:00:08]} 26. Rd2 {[%emt 0:00:12]} Qe7 {[%emt 0:00:11]} 27. Red1 {[%emt 0:00:03]} Rxd2 {[%emt 0:00:02]} 28. Rxd2 {[%emt 0:00:02]} Rc8 {[%emt 0:00:07]} 29. Rd5 {[%emt 0:00:14]} c4 {[%emt 0:00:06]} 30. bxc4 {[%emt 0:00:08]} Rxc4 {[%emt 0:00:06]} 31. Qd2 {[%emt 0:00:02]} Rc7 {[%emt 0:00:04]} 32. Rd8+ {[%emt 0:00:02]} Kh7 {[%emt 0:00:03]} 33. Qd6 {[%emt 0:00:06]} Qxd6 {[%emt 0:00:04]} 34. Rxd6 {[%emt 0:01:07]} Ra7 {[%emt 0:00:02]} 35. Kf1 {[%emt 0:00:00]} b4 {[%emt 0:00:02]} 36. Ke2 {[%emt 0:00:00]} Kg7 {[%emt 0:00:03]} 37. Kd3 {[%emt 0:00:00]} a5 {[%emt 0:00:04]} 38. Kc4 {[%emt 0:00:00]} Rc7+ {[%emt 0:00:02]} 39. Kd3 {[%emt 0:00:00]} Rc3+ {[%emt 0:00:02]} 40. Kd2 {[%emt 0:00:00]} Ra3 {[%emt 0:00:02]} 41. Rc6 {[%emt 0:00:00]} Rxa2+ {[%emt 0:00:02]} 42. Rc2 {[%emt 0:00:00]} Rxc2+ {[%emt 0:00:04]} 43. Kxc2 {[%emt 0:00:00]} Kf6 {[%emt 0:00:02]} 44. Kb3 {[%emt 0:00:00]} Ke5 {[%emt 0:00:02]} 45. Ka4 {[%emt 0:00:00]} Ke4 {[%emt 0:00:03]} 46. Kxa5 {[%emt 0:00:00]} b3 {[%emt 0:00:01]} 47. g4 {[%emt 0:00:00]} b2 {[%emt 0:00:03]} 48. gxf5 {[%emt 0:00:01]} gxf5 {[%emt 0:00:00]} 0-1

[Event "Djerba Festival Blitz 2025"]
[Site "Djerba"]
[Date "2025.02.21"]
[Round "3.30"]
[White "Charfeddine, Khaled"]
[Black "Chavallard, Yanis"]
[Result "0-1"]
[ECO "E61"]
[WhiteElo "1908"]
[BlackElo "1605"]
[PlyCount "93"]
[EventDate "2025.02.15"]
[EventType "swiss"]
[EventCountry "TUN"]
[TimeControl "180+3"]

1. d4 {[%emt 0:03:06]} g6 {[%emt 0:03:06]} 2. c4 d6 {[%emt 0:00:03]} 3. Nc3 {[%emt 0:00:06]} Bg7 4. Bf4 {[%emt 0:00:03]} Nf6 {[%emt 0:00:06]} 5. Qd2 {[%emt 0:00:03]} O-O {[%emt 0:00:03]} 6. Bh6 Nbd7 {[%emt 0:00:03]} 7. Bxg7 {[%emt 0:00:06]} Kxg7 {[%emt 0:00:03]} 8. Nf3 {[%emt 0:00:03]} e5 {[%emt 0:00:03]} 9. e3 {[%emt 0:00:03]} exd4 {[%emt 0:00:03]} 10. Nxd4 {[%emt 0:00:03]} Nb6 {[%emt 0:00:03]} 11. Be2 {[%emt 0:00:03]} d5 {[%emt 0:00:03]} 12. c5 {[%emt 0:00:03]} Nbd7 {[%emt 0:00:03]} 13. c6 {[%emt 0:00:03]} Nc5 {[%emt 0:00:03]} 14. cxb7 {[%emt 0:00:03]} Bxb7 {[%emt 0:00:03]} 15. O-O {[%emt 0:00:03]} Nce4 {[%emt 0:00:03]} 16. Qc2 {[%emt 0:00:03]} c5 {[%emt 0:00:03]} 17. Nf3 {[%emt 0:00:03]} Qc7 {[%emt 0:00:03]} 18. Nxe4 {[%emt 0:00:03]} dxe4 {[%emt 0:00:03]} 19. Nd2 {[%emt 0:00:03]} Rad8 {[%emt 0:00:03]} 20. Nc4 {[%emt 0:00:03]} Rd7 {[%emt 0:00:03]} 21. Rad1 {[%emt 0:00:03]} Rfd8 {[%emt 0:00:03]} 22. Rxd7 {[%emt 0:00:03]} Rxd7 {[%emt 0:00:03]} 23. Rd1 {[%emt 0:00:03]} Rxd1+ {[%emt 0:00:03]} 24. Qxd1 {[%emt 0:00:03]} Nd7 {[%emt 0:00:03]} 25. Qd6 {[%emt 0:00:03]} Qxd6 {[%emt 0:00:03]} 26. Nxd6 {[%emt 0:00:03]} Bc6 {[%emt 0:00:03]} 27. Bb5 {[%emt 0:00:03]} Bxb5 {[%emt 0:00:03]} 28. Nxb5 a6 {[%emt 0:00:03]} 29. Nc3 {[%emt 0:00:06]} f5 {[%emt 0:00:03]} 30. Kf1 {[%emt 0:00:03]} Ne5 {[%emt 0:00:03]} 31. Ke2 {[%emt 0:00:03]} Nd3 {[%emt 0:00:03]} 32. b3 {[%emt 0:00:03]} Nc1+ {[%emt 0:00:03]} 33. Kd2 {[%emt 0:00:03]} Nd3 {[%emt 0:00:03]} 34. f3 {[%emt 0:00:03]} exf3 {[%emt 0:00:03]} 35. Kxd3 {[%emt 0:00:03]} fxg2 {[%emt 0:00:03]} 36. Ne2 {[%emt 0:00:03]} h5 {[%emt 0:00:03]} 37. Ng1 {[%emt 0:00:03]} g5 {[%emt 0:00:03]} 38. Ke2 {[%emt 0:00:03]} h4 {[%emt 0:00:03]} 39. h3 g4 {[%emt 0:00:03]} 40. hxg4 {[%emt 0:00:06]} fxg4 {[%emt 0:00:03]} 41. Kf2 {[%emt 0:00:03]} h3 {[%emt 0:00:03]} 42. Ne2 {[%emt 0:00:03]} Kf6 {[%emt 0:00:03]} 43. Nc3 {[%emt 0:00:03]} Kg5 {[%emt 0:00:03]} 44. Ne2 {[%emt 0:00:03]} Kh4 {[%emt 0:00:03]} 45. Kg1 {[%emt 0:00:03]} g3 {[%emt 0:00:03]} 46. e4 {[%emt 0:00:03]} Kg4 {[%emt 0:00:03]} 47. a3 {[%emt 0:00:03]} 0-1

[Event "Djerba Festival Blitz 2025"]
[Site "Djerba"]
[Date "2025.02.21"]
[Round "3.31"]
[White "Ben Mbarek, Mohamed"]
[Black "Azreug, Lazhar"]
[Result "0-1"]
[ECO "A04"]
[WhiteElo "1570"]
[BlackElo "1793"]
[PlyCount "58"]
[EventDate "2025.02.15"]
[EventType "swiss"]
[EventCountry "TUN"]
[TimeControl "180+3"]

1. Nf3 {[%emt 0:00:04]} c5 {[%emt 0:00:02]} 2. g3 {[%emt 0:00:02]} Nc6 {[%emt 0:00:02]} 3. Bg2 {[%emt 0:00:03]} g6 {[%emt 0:00:01]} 4. d3 {[%emt 0:00:02]} Bg7 {[%emt 0:00:02]} 5. e4 {[%emt 0:00:03]} d6 {[%emt 0:00:02]} 6. O-O {[%emt 0:00:03]} e5 {[%emt 0:00:02]} 7. Nbd2 {[%emt 0:00:05]} Nge7 {[%emt 0:00:02]} 8. Nc4 {[%emt 0:00:03]} b5 {[%emt 0:00:09]} 9. Ne3 {[%emt 0:00:05]} O-O {[%emt 0:00:03]} 10. Bd2 {[%emt 0:00:06]} b4 {[%emt 0:00:13]} 11. c3 {[%emt 0:00:09]} a5 {[%emt 0:00:04]} 12. Qa4 {[%emt 0:00:11]} Bd7 {[%emt 0:00:07]} 13. Qb3 {[%emt 0:00:10]} Be6 {[%emt 0:00:07]} 14. Qa4 {[%emt 0:00:07]} h6 {[%emt 0:00:10]} 15. Rac1 {[%emt 0:00:17]} Kh7 {[%emt 0:00:07]} 16. Nc4 {[%emt 0:00:55]} Qc7 {[%emt 0:00:55]} 17. Qd1 {[%emt 0:00:08]} a4 {[%emt 0:00:27]} 18. cxb4 {[%emt 0:00:17]} cxb4 {[%emt 0:00:13]} 19. Nh4 {[%emt 0:00:27]} Rfb8 {[%emt 0:00:18]} 20. f4 {[%emt 0:00:08]} Bxc4 {[%emt 0:00:14]} 21. Rxc4 {[%emt 0:00:10]} exf4 {[%emt 0:00:04]} 22. Bxf4 {[%emt 0:00:06]} g5 {[%emt 0:00:05]} 23. Bxg5 {[%emt 0:00:15]} hxg5 {[%emt 0:00:03]} 24. Qh5+ {[%emt 0:00:03]} Kg8 {[%emt 0:00:20]} 25. e5 {[%emt 0:00:08]} Qa7+ {[%emt 0:00:08]} 26. Kh1 {[%emt 0:00:03]} Nxe5 {[%emt 0:00:00]} 27. d4 {[%emt 0:00:07]} gxh4 {[%emt 0:00:00]} 28. dxe5 {[%emt 0:00:03]} Ng6 {[%emt 0:00:00]} 29. Bxa8 Qxa8+ {[%emt 0:00:25] Qf5} 0-1

[Event "Djerba Festival Blitz 2025"]
[Site "Djerba"]
[Date "2025.02.21"]
[Round "3.32"]
[White "Marceil, Jean"]
[Black "Mathanchandaran, Dev"]
[Result "1-0"]
[ECO "D00"]
[WhiteElo "1901"]
[BlackElo "1650"]
[PlyCount "45"]
[EventDate "2025.02.15"]
[EventType "swiss"]
[EventCountry "TUN"]
[TimeControl "180+3"]

1. d4 {[%emt 0:00:04]} d5 {[%emt 0:00:03]} 2. e4 {[%emt 0:00:02]} dxe4 {[%emt 0:00:05]} 3. Nc3 {[%emt 0:00:02]} Nf6 {[%emt 0:00:10]} 4. f3 {[%emt 0:00:02]} e3 {[%emt 0:00:15]} 5. Bxe3 {[%emt 0:00:03]} Bf5 {[%emt 0:00:09]} 6. Bc4 {[%emt 0:00:03]} e6 {[%emt 0:00:03]} 7. Nge2 {[%emt 0:00:04]} a6 {[%emt 0:00:13]} 8. h4 {[%emt 0:00:17]} h5 {[%emt 0:00:12]} 9. Qd2 {[%emt 0:00:07]} Bd6 {[%emt 0:00:06]} 10. O-O-O {[%emt 0:00:03]} Nc6 {[%emt 0:00:08]} 11. Bg5 {[%emt 0:00:09]} Qd7 {[%emt 0:00:09]} 12. d5 {[%emt 0:00:16]} exd5 {[%emt 0:00:11]} 13. Nxd5 {[%emt 0:00:05]} Nxd5 {[%emt 0:00:13]} 14. Bxd5 {[%emt 0:00:05]} f6 {[%emt 0:00:05]} 15. Bxc6 {[%emt 0:00:27]} Qxc6 {[%emt 0:00:06]} 16. Qe3+ {[%emt 0:00:04]} Kf7 {[%emt 0:00:16]} 17. Nd4 {[%emt 0:00:13]} Qc5 {[%emt 0:00:12]} 18. Nxf5 {[%emt 0:00:05]} Qxf5 {[%emt 0:00:03]} 19. Qb3+ {[%emt 0:00:03]} Kf8 {[%emt 0:00:10]} 20. Be3 {[%emt 0:00:03]} Bf4 {[%emt 0:00:10]} 21. Bxf4 {[%emt 0:00:09]} Qxf4+ {[%emt 0:00:03]} 22. Kb1 {[%emt 0:00:02]} b6 {[%emt 0:00:11]} 23. Rd7 {[%emt 0:00:07]} 1-0

[Event "Djerba Festival Blitz 2025"]
[Site "Djerba"]
[Date "2025.02.21"]
[Round "3.33"]
[White "Baduel Ghalimi, Maxence"]
[Black "Alonso Garuti, Luis Eugenio"]
[Result "1-0"]
[ECO "E14"]
[WhiteElo "1506"]
[BlackElo "1845"]
[PlyCount "31"]
[EventDate "2025.02.15"]
[EventType "swiss"]
[EventCountry "TUN"]
[TimeControl "180+3"]

1. d4 {[%emt 0:00:04]} Nf6 {[%emt 0:00:04]} 2. c4 {[%emt 0:00:01]} e6 {[%emt 0:00:01]} 3. Nc3 {[%emt 0:00:03]} d5 {[%emt 0:00:03]} 4. Nf3 {[%emt 0:00:02]} b6 {[%emt 0:00:06]} 5. e3 {[%emt 0:00:02]} Bb7 {[%emt 0:00:02]} 6. Be2 {[%emt 0:00:02]} Bb4 {[%emt 0:00:09]} 7. cxd5 {[%emt 0:00:03]} Nxd5 {[%emt 0:00:05]} 8. Bd2 {[%emt 0:00:02]} O-O {[%emt 0:00:12]} 9. Nxd5 {[%emt 0:00:14]} Bxd2+ {[%emt 0:00:04]} 10. Nxd2 {[%emt 0:00:06]} Qxd5 {[%emt 0:00:06]} 11. Bf3 {[%emt 0:00:05]} Qa5 {[%emt 0:00:04]} 12. Bxb7 {[%emt 0:00:06]} Na6 {[%emt 0:00:19]} 13. Bxa8 {[%emt 0:00:02]} Rxa8 {[%emt 0:00:02]} 14. O-O {[%emt 0:00:04]} Nb4 {[%emt 0:00:16]} 15. Nb3 {[%emt 0:00:05]} Qf5 {[%emt 0:00:04]} 16. Qf3 {[%emt 0:02:50]} 1-0